bitfinex-derivatives/quotes_BTCF0:USTF0_20250709
["timestamp","ask_amount","ask_price","bid_price","bid_amount"]
[1752033276777,0.3694781,108430.0,108420.0,0.93936583]
[1752033276979,0.62209081,108430.0,108420.0,0.95042583]
[1752033277480,0.62209081,108430.0,108420.0,0.93936583]
[1752033281078,0.54209081,108430.0,108420.0,0.12810063]
[1752033281386,1.10470352,108430.0,108420.0,0.75490063]
[1752033282280,1.10470352,108430.0,108420.0,0.12810063]
[1752033282479,1.73150352,108430.0,108420.0,0.12810063]
[1752033282678,1.73150352,108430.0,108420.0,0.01741634]
[1752033283395,1.73150352,108430.0,108420.0,0.10041017]
[1752033285392,1.71441352,108430.0,108420.0,0.10041017]
[1752033292603,1.2191881,108430.0,108420.0,0.10041017]
[1752033292898,1.71441352,108430.0,108420.0,0.10041017]
[1752033294700,1.71441352,108430.0,108420.0,0.15569994]
[1752033295294,1.71441352,108430.0,108420.0,0.08865547]
[1752033295495,1.71441352,108430.0,108420.0,0.02016911]
[1752033296298,1.70143711,108430.0,108420.0,0.03098278]
[1752033296696,1.70243711,108430.0,108420.0,0.03198278]
[1752033296897,1.70143711,108430.0,108420.0,0.03198278]
[1752033297096,1.70343711,108430.0,108420.0,0.03198278]
[1752033297298,1.70343711,108430.0,108420.0,0.21640788]
[1752033297499,1.70343711,108430.0,108420.0,0.03198278]
[1752033297702,1.71343711,108430.0,108420.0,0.03198278]
[1752033298200,1.71343711,108430.0,108420.0,0.02116911]
[1752033298401,1.71343711,108430.0,108420.0,0.03198278]
[1752033300207,1.70694891,108430.0,108420.0,0.03198278]
[1752033300906,1.69613524,108430.0,108420.0,0.03198278]
[1752033302398,1.68748431,108430.0,108420.0,0.03198278]
[1752033306803,1.18225889,108430.0,108420.0,0.03198278]
[1752033307007,1.70748431,108430.0,108420.0,0.03198278]
[1752033307306,1.70748431,108430.0,108420.0,0.04640101]
[1752033308308,1.69883338,108430.0,108420.0,0.04640101]
[1752033312205,1.69883338,108430.0,108420.0,0.04640108]
[1752033314315,1.66680239,108430.0,108420.0,0.04640108]
[1752033314510,1.69018239,108430.0,108420.0,0.04640108]
[1752033315516,1.69018239,108430.0,108420.0,0.12943171]
[1752033317922,1.69018239,108430.0,108420.0,0.12943174]
[1752033319122,1.69018239,108430.0,108420.0,0.04640111]
[1752033323823,1.9427951,108430.0,108420.0,0.12943188]
[1752033324121,1.9427951,108430.0,108420.0,0.04640125]
[1752033325924,1.69018239,108430.0,108420.0,0.04640125]
[1752033326722,1.69018239,108430.0,108420.0,0.0464029]
[1752033326918,1.9427951,108430.0,108420.0,0.0464029]
[1752033327122,1.9427951,108430.0,108420.0,0.0350329]
[1752033328210,1.69018239,108430.0,108420.0,0.0350329]
[1752033330117,1.69018239,108430.0,108420.0,0.02623379]
[1752033330320,1.69018239,108430.0,108420.0,0.01541931]
[1752033332513,1.69018239,108430.0,108420.0,0.01541933]
[1752033332823,1.69018239,108430.0,108420.0,0.01386933]
[1752033333026,1.69018239,108430.0,108420.0,0.00585933]
[1752033333524,1.69018239,108430.0,108420.0,0.00532933]
[1752033334928,1.69018239,108430.0,108420.0,0.00438933]
[1752033335518,1.69018239,108430.0,108420.0,0.00384933]
[1752033336420,1.81461813,108430.0,108410.0,0.06467996]
[1752033336626,0.76741052,108420.0,108410.0,0.06467996]
[1752033336819,1.15163052,108420.0,108410.0,0.06393868]
[1752033338028,1.1608378,108420.0,108410.0,0.06393868]
[1752033338226,1.1618378,108420.0,108410.0,0.06393868]
[1752033338620,1.1618378,108420.0,108410.0,0.06493868]
[1752033339026,1.41445051,108420.0,108410.0,0.06493868]
[1752033339527,1.41545051,108420.0,108410.0,0.06493868]
[1752033340328,1.41545051,108420.0,108410.0,0.001]
[1752033341931,0.38761238,108420.0,108410.0,0.001]
[1752033342127,0.66761238,108420.0,108410.0,0.001]
[1752033342334,1.42545051,108420.0,108410.0,0.001]
[1752033342935,0.40761238,108420.0,108410.0,0.001]
[1752033343122,1.40545051,108420.0,108410.0,0.001]
[1752033343323,1.16545051,108420.0,108410.0,0.001]
[1752033343533,1.41545051,108420.0,108410.0,0.001]
[1752033343832,1.1628378,108420.0,108410.0,0.001]
[1752033344438,1.7906778,108420.0,108410.0,0.001]
[1752033345334,1.1628378,108420.0,108410.0,0.001]
[1752033345529,1.7507578,108420.0,108410.0,0.001]
[1752033346631,1.1228378,108420.0,108410.0,0.001]
[1752033346837,1.5507578,108420.0,108410.0,0.001]
[1752033347030,1.7407578,108420.0,108410.0,0.001]
[1752033348535,1.7407578,108420.0,108410.0,0.01535699]
[1752033349935,1.7407578,108420.0,108410.0,0.01535733]
[1752033357131,1.7407578,108420.0,108410.0,0.07068999]
[1752033362645,1.10363052,108420.0,108410.0,0.07068999]
[1752033362842,1.51131052,108420.0,108410.0,0.15368898]
[1752033363045,1.74131052,108420.0,108410.0,0.15368898]
[1752033363243,1.75079305,108420.0,108410.0,0.15368898]
[1752033364651,1.11363052,108420.0,108410.0,0.33813088]
[1752033364853,1.42135052,108420.0,108410.0,0.33813088]
[1752033365052,1.78135052,108420.0,108410.0,0.33813088]
[1752033365858,1.15363052,108420.0,108410.0,0.33813088]
[1752033366048,1.73131052,108420.0,108410.0,0.33813088]
[1752033366856,1.10363052,108420.0,108410.0,0.33813088]
[1752033367048,1.80127052,108420.0,108410.0,0.29385822]
[1752033367554,1.80127052,108420.0,108410.0,0.34920247]
[1752033369153,1.80127052,108420.0,108410.0,0.29385822]
[1752033369456,1.80127052,108420.0,108410.0,0.34920648]
[1752033369764,1.80127052,108420.0,108410.0,0.29385822]
[1752033370257,0.46261781,108420.0,108410.0,0.54647093]
[1752033370458,1.35937052,108420.0,108410.0,0.60857093]
[1752033370657,0.45565781,108420.0,108410.0,0.58091605]
[1752033371057,0.47923781,108420.0,108410.0,0.58091605]
[1752033371463,0.45565781,108420.0,108410.0,0.58091605]
[1752033371864,0.73185052,108420.0,108410.0,0.58091605]
[1752033374268,0.73185052,108420.0,108410.0,1.83583605]
[1752033375168,0.73185052,108420.0,108410.0,1.91883504]
[1752033375462,0.47923781,108420.0,108410.0,1.82147872]
[1752033375670,0.47923781,108420.0,108410.0,2.15580543]
[1752033377472,0.47923781,108420.0,108410.0,1.58319272]
[1752033377672,0.47923781,108420.0,108410.0,2.18580543]
[1752033379469,0.47923781,108420.0,108410.0,2.26880442]
[1752033379773,0.1864251,108420.0,108410.0,2.17470451]
[1752033380465,0.1864251,108420.0,108410.0,2.20240031]
[1752033380664,0.43903781,108420.0,108410.0,2.20240031]
[1752033381165,0.1864251,108420.0,108410.0,2.20240031]
[1752033381378,0.43903781,108420.0,108410.0,2.20240031]
[1752033382475,0.43903781,108420.0,108410.0,1.9497876]
[1752033382674,0.43903781,108420.0,108410.0,2.20240031]
[1752033383371,0.45433781,108420.0,108410.0,2.20240031]
[1752033383572,0.45433781,108420.0,108410.0,2.20233901]
[1752033383573,0.43903781,108420.0,108410.0,2.20233901]
[1752033383962,0.002,108420.0,108410.0,2.20233901]
[1752033384165,0.18452912,108440.0,108430.0,0.1844079]
[1752033384368,0.4099449,108450.0,108440.0,0.1843909]
[1752033384577,0.53957031,108450.0,108440.0,1.04388173]
[1752033384874,0.52916641,108460.0,108450.0,0.20365603]
[1752033385075,0.0462,108460.0,108450.0,2.11783415]
[1752033385277,0.1843569,108460.0,108450.0,2.32060675]
[1752033385571,0.3637993,108470.0,108460.0,0.1843569]
[1752033385767,0.3637993,108470.0,108460.0,0.45123502]
[1752033385768,0.63171201,108470.0,108460.0,0.45123502]
[1752033386075,0.63171201,108470.0,108460.0,0.19862231]
[1752033386769,0.63166633,108470.0,108460.0,0.19862231]
[1752033386971,0.63166633,108470.0,108460.0,0.19857293]
[1752033387874,0.63466633,108470.0,108460.0,0.19957293]
[1752033388476,0.63466633,108470.0,108460.0,0.21063293]
[1752033388877,0.63466633,108470.0,108460.0,0.1964169]
[1752033389080,0.63466633,108470.0,108460.0,0.1853569]
[1752033389586,0.63466633,108470.0,108460.0,0.1964169]
[1752033389779,0.63466633,108470.0,108460.0,0.1853569]
[1752033390171,0.63466633,108470.0,108460.0,0.1964169]
[1752033390574,0.63466633,108470.0,108460.0,0.1853569]
[1752033390982,0.63466633,108470.0,108460.0,0.1964169]
[1752033392684,0.63666633,108470.0,108460.0,0.1974169]
[1752033392985,0.63666633,108470.0,108460.0,0.1974172]
[1752033393489,0.59789633,108470.0,108460.0,0.1863572]
[1752033393677,0.63666633,108470.0,108460.0,0.1863572]
[1752033396881,0.63666633,108470.0,108460.0,0.1974172]
[1752033397072,0.63666633,108470.0,108460.0,0.1863572]
[1752033397275,0.63666633,108470.0,108460.0,0.01306]
[1752033397986,0.63666633,108470.0,108460.0,0.002]
[1752033398284,0.63666633,108470.0,108460.0,0.01306]
[1752033398583,0.63666633,108470.0,108460.0,0.1974173]
[1752033400682,0.3840993,108470.0,108460.0,0.1974173]
[1752033401184,0.3840993,108470.0,108460.0,0.80998433]
[1752033401981,0.3840993,108470.0,108460.0,0.5574173]
[1752033402586,0.63666633,108470.0,108460.0,0.5574173]
[1752033403285,0.3840993,108470.0,108460.0,0.5574173]
[1752033404781,0.63666633,108470.0,108460.0,0.5574173]
[1752033405282,0.63666633,108470.0,108460.0,0.1974173]
[1752033406786,0.3840993,108470.0,108460.0,0.1974173]
[1752033406986,0.63666633,108470.0,108460.0,0.1974173]
[1752033407587,0.3840993,108470.0,108460.0,0.1974173]
[1752033407887,0.63666633,108470.0,108460.0,0.1974173]
[1752033408888,0.63666175,108470.0,108460.0,0.44997975]
[1752033414193,0.63666175,108470.0,108460.0,0.50526813]
[1752033414997,0.63666175,108470.0,108460.0,0.52526813]
[1752033417195,0.63666175,108470.0,108460.0,0.60820071]
[1752033421593,0.63666175,108470.0,108460.0,0.35563826]
[1752033421796,0.63666175,108470.0,108460.0,0.60820071]
[1752033425003,0.63666175,108470.0,108460.0,0.35563826]
[1752033425203,0.63666175,108470.0,108460.0,0.60820071]
[1752033429906,0.63666175,108470.0,108460.0,0.35563826]
[1752033430105,0.63666175,108470.0,108460.0,0.60820071]
[1752033430505,0.63666175,108470.0,108460.0,0.52526813]
[1752033431303,0.63666175,108470.0,108460.0,0.27270568]
[1752033433005,0.63666175,108470.0,108460.0,0.35563826]
[1752033434001,0.63666175,108470.0,108460.0,0.51563826]
[1752033435111,0.63666175,108470.0,108460.0,0.76820071]
[1752033435312,0.63666175,108470.0,108460.0,0.68526813]
[1752033435810,0.63666175,108470.0,108460.0,0.43270568]
[1752033437111,0.63666175,108470.0,108460.0,0.44701184]
[1752033443623,0.8504542,108470.0,108460.0,0.25159454]
[1752033443831,1.2506642,108470.0,108460.0,0.25159454]
[1752033444128,1.2406642,108470.0,108460.0,0.01630616]
[1752033444823,0.8906642,108470.0,108460.0,0.01630616]
[1752033445030,1.2606642,108470.0,108460.0,0.01630616]
[1752033445333,1.2606642,108470.0,108460.0,0.07159454]
[1752033447124,1.2204542,108470.0,108460.0,0.07159454]
[1752033447326,1.2440542,108470.0,108460.0,0.07159454]
[1752033448331,1.2440542,108470.0,108460.0,0.01630616]
[1752033449827,0.7389293,108470.0,108460.0,0.01630616]
[1752033450036,0.96617436,108470.0,108460.0,0.01630616]
[1752033450332,1.27617436,108470.0,108460.0,0.07159454]
[1752033450735,0.96617436,108470.0,108460.0,0.07159454]
[1752033450924,1.29617436,108470.0,108460.0,0.07159454]
[1752033451124,0.96617436,108470.0,108460.0,0.07159454]
[1752033451324,1.03617436,108470.0,108460.0,0.07159454]
[1752033451633,0.96617436,108470.0,108460.0,0.07159454]
[1752033451931,1.32617436,108470.0,108460.0,0.07159454]
[1752033452332,1.32617436,108470.0,108460.0,0.01630616]
[1752033452733,1.04617436,108470.0,108460.0,0.01630616]
[1752033453634,1.34617436,108470.0,108460.0,0.01630616]
[1752033454039,1.29617436,108470.0,108460.0,0.01630616]
[1752033455031,0.79104946,108470.0,108460.0,0.01630616]
[1752033455232,1.09361191,108470.0,108460.0,0.01630616]
[1752033455533,0.71361191,108470.0,108460.0,0.01630616]
[1752033456028,1.02361191,108470.0,108460.0,0.01630616]
[1752033458037,0.79361191,108470.0,108460.0,0.01630616]
[1752033458839,1.07361191,108470.0,108460.0,0.01630616]
[1752033459037,0.71361191,108470.0,108460.0,0.01630616]
[1752033460241,1.31617436,108470.0,108460.0,0.01630616]
[1752033461338,1.31617436,108470.0,108460.0,0.01636516]
[1752033464135,1.31617436,108470.0,108460.0,0.01636612]
[1752033464438,1.31617436,108470.0,108460.0,0.01637488]
[1752033465635,1.56873681,108470.0,108460.0,0.01637488]
[1752033465940,0.3227112,108450.0,108440.0,0.1844037]
[1752033466140,0.57527365,108450.0,108440.0,0.1844037]
[1752033466336,0.57527365,108450.0,108440.0,0.8151637]
[1752033466532,0.63817365,108450.0,108440.0,0.8151637]
[1752033467034,0.63817365,108450.0,108440.0,0.8161637]
[1752033467338,0.64017365,108450.0,108440.0,0.8181637]
[1752033467533,0.64017365,108450.0,108440.0,1.07072615]
[1752033467735,0.64017365,108450.0,108440.0,0.8181637]
[1752033468943,0.64017365,108450.0,108440.0,0.1874037]
[1752033469140,0.3876112,108450.0,108440.0,0.1874037]
[1752033469338,0.64017365,108450.0,108440.0,0.1874037]
[1752033469642,0.67943365,108450.0,108440.0,0.1874037]
[1752033470242,0.4268712,108450.0,108440.0,0.1874037]
[1752033470442,0.67943365,108450.0,108440.0,0.1874037]
[1752033470642,0.4268712,108450.0,108440.0,0.1874037]
[1752033470842,0.67943365,108450.0,108440.0,0.1984637]
[1752033471142,0.67943365,108450.0,108440.0,0.45102615]
[1752033475242,0.67943365,108450.0,108440.0,0.53395873]
[1752033476345,0.67943365,108450.0,108440.0,0.28139628]
[1752033476545,0.67943365,108450.0,108440.0,0.53395873]
[1752033477846,0.67943365,108450.0,108440.0,0.54828249]
[1752033481047,0.67943365,108450.0,108440.0,0.28466004]
[1752033483550,0.67943365,108450.0,108440.0,0.08593258]
[1752033484248,0.9319961,108450.0,108440.0,0.08593258]
[1752033484447,1.00943365,108450.0,108440.0,0.08593258]
[1752033485053,0.67943365,108450.0,108440.0,0.08593258]
[1752033485249,0.75943365,108450.0,108440.0,0.003]
[1752033486347,0.75943365,108450.0,108440.0,0.1874082]
[1752033491259,0.5068712,108450.0,108440.0,0.1874082]
[1752033491556,0.72017365,108450.0,108440.0,0.1874082]
[1752033491763,0.75943365,108450.0,108440.0,0.1874082]
[1752033492753,0.71333225,108450.0,108440.0,0.45103065]
[1752033493156,0.71333225,108450.0,108440.0,0.43997065]
[1752033493356,0.71333225,108450.0,108440.0,0.45103065]
[1752033494359,0.71333225,108450.0,108440.0,0.53396323]
[1752033495161,0.59999225,108450.0,108440.0,0.45103065]
[1752033495362,0.59999225,108450.0,108440.0,0.24579253]
[1752033495552,0.59999225,108450.0,108440.0,0.49835498]
[1752033495752,0.63209225,108450.0,108440.0,0.49835498]
[1752033495961,0.63209225,108450.0,108440.0,0.55370092]
[1752033497161,0.3795298,108450.0,108440.0,0.55370092]
[1752033497358,0.0460971,108460.0,108440.0,1.31456157]
[1752033497565,0.3628043,108460.0,108450.0,0.49229959]
[1752033497751,0.63146675,108460.0,108450.0,0.85839447]
[1752033498061,0.63146675,108460.0,108450.0,0.52839447]
[1752033498262,0.63146675,108460.0,108450.0,0.61132705]
[1752033498563,0.63246675,108460.0,108450.0,0.61132705]
[1752033498982,0.63446675,108460.0,108450.0,0.61132705]
[1752033499361,0.63446675,108460.0,108450.0,0.60026705]
[1752033500156,0.63346675,108460.0,108450.0,0.61232705]
[1752033500362,0.63446675,108460.0,108450.0,1.23442705]
[1752033501362,0.3819043,108460.0,108450.0,1.23442705]
[1752033501566,0.63446675,108460.0,108450.0,0.9818646]
[1752033501864,0.63446675,108460.0,108450.0,1.24548705]
[1752033502254,0.63446675,108460.0,108450.0,1.17908111]
[1752033502964,0.8870292,108460.0,108450.0,1.17908111]
[1752033504764,0.8870292,108460.0,108450.0,1.17905151]
[1752033505464,0.3819043,108460.0,108450.0,1.17905151]
[1752033505664,0.8870292,108460.0,108450.0,1.17905151]
[1752033505870,0.63446675,108460.0,108450.0,1.17905151]
[1752033506059,0.8870292,108460.0,108450.0,1.17905151]
[1752033506369,0.8870292,108460.0,108450.0,1.16485599]
[1752033506867,0.63446675,108460.0,108450.0,1.16485599]
[1752033507462,0.63446675,108460.0,108450.0,1.16485612]
[1752033507954,0.63446675,108460.0,108450.0,1.22011349]
[1752033510069,0.63446675,108460.0,108450.0,1.16485612]
[1752033510270,0.63446675,108460.0,108450.0,1.22010762]
[1752033512371,0.59584675,108460.0,108450.0,1.22010762]
[1752033513472,0.59584675,108460.0,108450.0,1.23450792]
[1752033513764,0.59584675,108460.0,108450.0,1.234508]
[1752033513963,0.8484092,108460.0,108450.0,1.234508]
[1752033514372,0.8870292,108460.0,108450.0,1.234508]
[1752033516470,0.8870292,108460.0,108450.0,1.1792565]
[1752033516665,0.8870292,108460.0,108450.0,1.23450615]
[1752033516866,0.8870292,108460.0,108450.0,1.1792565]
[1752033517170,0.8870292,108460.0,108450.0,1.23450624]
[1752033517471,0.8870292,108460.0,108450.0,1.1792565]
[1752033518172,0.8870292,108460.0,108450.0,1.2345083]
[1752033518371,0.8870292,108460.0,108450.0,1.1792565]
[1752033518867,0.8870292,108460.0,108450.0,0.9819489]
[1752033519073,0.8870292,108460.0,108450.0,0.9808688]
[1752033519868,1.49959165,108460.0,108450.0,0.08146512]
[1752033520068,1.49959165,108460.0,108450.0,0.02621027]
[1752033520375,1.2470292,108460.0,108450.0,0.02621027]
[1752033520973,1.49959165,108460.0,108450.0,0.02621027]
[1752033521464,1.2470292,108460.0,108450.0,0.02621027]
[1752033522472,1.2470292,108460.0,108450.0,0.02621409]
[1752033523369,1.2084092,108460.0,108450.0,0.02621409]
[1752033523576,1.2309292,108460.0,108450.0,0.02621409]
[1752033525482,0.7258043,108460.0,108450.0,0.0262262]
[1752033525673,1.2470292,108460.0,108450.0,0.0262262]
[1752033535293,1.2470292,108460.0,108450.0,0.08148105]
[1752033537590,1.8791892,108460.0,108450.0,0.08148105]
[1752033538394,1.8821892,108460.0,108450.0,0.08148105]
[1752033538589,1.8841892,108460.0,108450.0,0.08048105]
[1752033539999,0.7469043,108460.0,108450.0,0.08048105]
[1752033540294,1.8841892,108460.0,108450.0,0.0804809]
[1752033542097,1.8841892,108460.0,108450.0,0.08048061]
[1752033542296,1.8851492,108460.0,108450.0,0.08048061]
[1752033548000,1.8851492,108460.0,108450.0,0.08048058]
[1752033549001,1.94050143,108460.0,108450.0,0.02522573]
[1752033549200,0.3226923,108450.0,108430.0,0.2463765]
[1752033549392,0.79202577,108450.0,108440.0,0.1844045]
[1752033549593,1.09135822,108450.0,108440.0,0.07646782]
[1752033549899,1.09135822,108450.0,108430.0,0.39922281]
[1752033550194,0.7443931,108440.0,108430.0,0.36136342]
[1752033550396,0.78149202,108440.0,108430.0,0.36408046]
[1752033550603,1.11149202,108440.0,108430.0,0.19371727]
[1752033550899,1.74493202,108440.0,108430.0,0.19371727]
[1752033551098,1.74493202,108440.0,108430.0,0.05535228]
[1752033551495,1.7246031,108440.0,108430.0,0.05535228]
[1752033551803,1.7276031,108440.0,108430.0,0.19371167]
[1752033551995,1.7286031,108440.0,108430.0,0.19371167]
[1752033552391,1.7306031,108440.0,108430.0,0.19371167]
[1752033552601,1.69738808,108440.0,108430.0,0.19371167]
[1752033552801,1.69838808,108440.0,108430.0,0.11574863]
[1752033553203,1.69838808,108440.0,108420.0,0.52357718]
[1752033553204,0.1844247,108430.0,108420.0,0.52357718]
[1752033553496,0.48555715,108430.0,108420.0,1.20022209]
[1752033553702,0.2329947,108430.0,108420.0,0.93379838]
[1752033553904,0.50901715,108430.0,108420.0,1.20626083]
[1752033554595,0.51101715,108430.0,108420.0,1.16428063]
[1752033554793,0.51101715,108430.0,108420.0,0.91171818]
[1752033554998,0.51101715,108430.0,108420.0,1.16428063]
[1752033555697,0.51101715,108430.0,108420.0,1.04433736]
[1752033557596,0.51101715,108430.0,108420.0,0.96344051]
[1752033557894,0.51101715,108430.0,108420.0,1.11934954]
[1752033558094,0.51101715,108430.0,108420.0,1.00360091]
[1752033558704,0.51101715,108430.0,108420.0,0.92563778]
[1752033558904,0.54101715,108430.0,108420.0,0.93669778]
[1752033559398,0.51887378,108430.0,108420.0,0.93669778]
[1752033559603,0.5078021,108430.0,108420.0,0.87972472]
[1752033559802,0.5078021,108430.0,108420.0,0.96292056]
[1752033560398,0.5088021,108430.0,108420.0,0.96292056]
[1752033560603,0.49773042,108430.0,108420.0,0.96292056]
[1752033561009,0.49673042,108430.0,108420.0,0.96292056]
[1752033561213,0.49773042,108430.0,108420.0,0.97833682]
[1752033561704,0.49773042,108430.0,108420.0,0.94864191]
[1752033561910,0.24516797,108430.0,108420.0,0.79842191]
[1752033562206,0.49773042,108430.0,108420.0,0.5062281]
[1752033562506,0.49773042,108430.0,108420.0,0.75879055]
[1752033563506,0.49773042,108430.0,108420.0,0.73889055]
[1752033564210,0.49773042,108430.0,108420.0,0.72783055]
[1752033564609,0.49773042,108430.0,108420.0,0.68585059]
[1752033564811,0.49773042,108430.0,108420.0,0.68172005]
[1752033564996,0.49773042,108430.0,108420.0,0.72783055]
[1752033565197,0.49773042,108430.0,108420.0,0.83839961]
[1752033565708,0.49773042,108430.0,108420.0,0.64686884]
[1752033565907,0.49773042,108430.0,108420.0,0.75743552]
[1752033566102,0.49773042,108430.0,108420.0,0.64686884]
[1752033567404,0.47558707,108430.0,108420.0,0.64686884]
[1752033567606,0.47558707,108430.0,108420.0,0.54339555]
[1752033567805,0.47558707,108430.0,108420.0,0.63787318]
[1752033569010,0.47558707,108430.0,108420.0,0.63962577]
[1752033570108,0.25256245,108430.0,108420.0,0.83333675]
[1752033570308,0.47582715,108430.0,108420.0,0.91504344]
[1752033570499,0.47582715,108430.0,108420.0,0.72133246]
[1752033570699,0.47582715,108430.0,108420.0,0.67522196]
[1752033571409,0.45220715,108430.0,108420.0,0.67522196]
[1752033571604,0.45220715,108430.0,108420.0,0.7305804]
[1752033573514,0.51660715,108430.0,108420.0,0.7305804]
[1752033575311,0.51660715,108430.0,108420.0,0.92429138]
[1752033576215,0.35053183,108430.0,108420.0,0.92429138]
[1752033577117,0.35053183,108430.0,108420.0,0.92329138]
[1752033577306,0.35153183,108430.0,108420.0,0.92429138]
[1752033577713,0.35253183,108430.0,108420.0,0.92629138]
[1752033579413,0.35253183,108430.0,108420.0,1.17885383]
[1752033580317,0.4805379,108430.0,108420.0,0.92629138]
[1752033580512,0.4805379,108430.0,108420.0,0.7325804]
[1752033580814,0.4805379,108430.0,108420.0,0.48001795]
[1752033581113,0.22797545,108430.0,108420.0,0.98514285]
[1752033581315,0.4805379,108430.0,108420.0,0.98514285]
[1752033581614,0.4805379,108430.0,108420.0,0.92978441]
[1752033582615,0.22797545,108430.0,108420.0,0.92978441]
[1752033582814,0.4805379,108430.0,108420.0,0.92978441]
[1752033585115,0.22797545,108430.0,108420.0,0.92978441]
[1752033585316,0.22797545,108430.0,108420.0,0.95393441]
[1752033586020,0.08162,108430.0,108420.0,1.20302861]
[1752033586216,0.1844247,108430.0,108420.0,1.24913911]
[1752033586417,0.1844247,108430.0,108420.0,1.31163911]
[1752033587114,0.2003047,108430.0,108420.0,1.31163911]
[1752033587320,0.1844247,108430.0,108420.0,1.31163911]
[1752033587515,0.1844247,108430.0,108420.0,1.31163885]
[1752033587723,0.2003047,108430.0,108420.0,1.31163885]
[1752033587910,0.1844247,108430.0,108420.0,1.31163885]
[1752033588114,0.2003047,108430.0,108420.0,1.65163885]
[1752033588310,0.1844247,108430.0,108420.0,1.65163885]
[1752033588622,0.1844247,108430.0,108420.0,0.80651395]
[1752033588816,0.1844247,108430.0,108420.0,1.31163885]
[1752033589016,0.2003047,108430.0,108420.0,1.31163885]
[1752033589323,0.18923323,108430.0,108420.0,1.32605483]
[1752033589519,0.21953323,108430.0,108420.0,1.32605483]
[1752033589916,0.20365323,108430.0,108420.0,1.32605483]
[1752033590121,0.21953323,108430.0,108420.0,1.32605483]
[1752033590323,0.2147247,108430.0,108420.0,1.31163885]
[1752033590508,0.19973209,108430.0,108420.0,1.32605483]
[1752033590711,0.09567117,108430.0,108420.0,1.32605483]
[1752033590917,0.09567117,108430.0,108420.0,1.13231825]
[1752033591116,0.09567117,108430.0,108420.0,1.11289206]
[1752033593127,0.09567117,108430.0,108420.0,1.25124976]
[1752033593930,0.09567117,108430.0,108420.0,1.23507976]
[1752033595533,0.34823362,108430.0,108420.0,1.23507965]
[1752033595730,0.37853362,108430.0,108420.0,1.23507965]
[1752033596824,0.48316715,108430.0,108420.0,1.23507965]
[1752033597024,0.48316715,108430.0,108420.0,1.18896289]
[1752033598333,0.48316715,108430.0,108420.0,1.15706289]
[1752033598719,0.48316715,108430.0,108420.0,1.05706289]
[1752033599525,0.48316715,108430.0,108420.0,0.47309444]
[1752033599728,0.48316715,108430.0,108420.0,0.48903444]
[1752033599729,0.53767715,108430.0,108420.0,0.48903444]
[1752033600031,0.53767715,108430.0,108420.0,0.47309444]
[1752033600231,0.53767715,108430.0,108420.0,0.29532564]
[1752033600527,0.51368833,108430.0,108420.0,0.27938564]
[1752033600731,0.51368833,108430.0,108420.0,0.40601116]
[1752033600935,0.48967833,108430.0,108420.0,0.40601116]
[1752033601232,0.48967833,108430.0,108420.0,0.59045296]
[1752033601629,0.48967833,108430.0,108420.0,0.40601116]
[1752033601931,0.48967833,108430.0,108420.0,0.59045296]
[1752033602128,0.48967833,108430.0,108420.0,0.50391744]
[1752033602331,0.48967833,108430.0,108420.0,0.47976744]
[1752033602931,0.22512137,108430.0,108420.0,0.47976744]
[1752033603129,0.87169382,108430.0,108420.0,0.40601116]
[1752033603432,0.50169382,108430.0,108420.0,0.46382744]
[1752033603634,0.50169382,108430.0,108420.0,1.11040744]
[1752033604231,0.50169382,108430.0,108420.0,1.11040814]
[1752033604431,0.24913137,108430.0,108420.0,1.11040814]
[1752033604632,0.50169382,108430.0,108420.0,1.11040814]
[1752033604932,0.50169382,108430.0,108420.0,1.14070814]
[1752033605537,0.49569653,108430.0,108420.0,1.14070814]
[1752033606237,0.24313408,108430.0,108420.0,1.14070814]
[1752033606434,0.49569653,108430.0,108420.0,1.14070814]
[1752033606635,0.474706,108430.0,108420.0,1.14070814]
[1752033607034,0.450696,108430.0,108420.0,0.02682389]
[1752033607332,0.483096,108430.0,108420.0,1.08506082]
[1752033607737,0.483096,108430.0,108420.0,0.45442082]
[1752033607931,0.483096,108430.0,108420.0,1.08502082]
[1752033608333,0.483096,108430.0,108420.0,0.26997902]
[1752033608632,0.483096,108430.0,108420.0,0.90053902]
[1752033608633,0.507106,108430.0,108420.0,0.90053902]
[1752033608938,0.507106,108430.0,108420.0,1.10092072]
[1752033609138,0.507106,108430.0,108420.0,1.08650415]
[1752033609437,0.507106,108430.0,108420.0,0.8339417]
[1752033609633,0.507106,108430.0,108420.0,1.08650415]
[1752033609832,0.507106,108430.0,108420.0,1.10301688]
[1752033610335,0.507106,108430.0,108420.0,0.01894]
[1752033610539,0.507106,108430.0,108420.0,0.90206245]
[1752033610730,0.507106,108430.0,108420.0,1.08650415]
[1752033611131,0.507106,108430.0,108420.0,0.45594415]
[1752033611330,0.507106,108430.0,108420.0,0.90282245]
[1752033611535,0.507106,108430.0,108420.0,0.27150245]
[1752033611732,0.507106,108430.0,108420.0,0.90286245]
[1752033612038,0.25454355,108430.0,108420.0,0.90286245]
[1752033612239,0.507106,108430.0,108420.0,0.90286245]
[1752033613243,0.25454355,108430.0,108420.0,0.91980722]
[1752033613541,0.507106,108430.0,108420.0,0.91980722]
[1752033614034,0.507106,108430.0,108420.0,0.90286245]
[1752033617345,0.507106,108430.0,108420.0,0.91941284]
[1752033617735,0.507106,108430.0,108420.0,1.03009836]
[1752033617932,0.507106,108430.0,108420.0,1.06189836]
[1752033618341,0.483096,108430.0,108420.0,1.06189836]
[1752033620446,0.483096,108430.0,108420.0,1.26931016]
[1752033621443,0.483096,108430.0,108420.0,1.30091016]
[1752033621746,0.23053355,108430.0,108420.0,1.30091016]
[1752033621947,0.483096,108430.0,108420.0,1.30091016]
[1752033622444,0.19813355,108430.0,108420.0,1.04834771]
[1752033622842,0.15615025,108430.0,108420.0,0.95207953]
[1752033623245,0.15615025,108430.0,108420.0,1.06276505]
[1752033623847,0.15615025,108430.0,108420.0,0.87832325]
[1752033624847,0.15615025,108430.0,108420.0,0.76763773]
[1752033625148,0.15615025,108430.0,108420.0,0.78666119]
[1752033625647,0.15615025,108430.0,108420.0,0.7701108]
[1752033625849,0.15615025,108430.0,108420.0,0.19874088]
[1752033626148,0.18054025,108430.0,108420.0,0.82990088]
[1752033626345,0.21224025,108430.0,108420.0,0.82990088]
[1752033626546,0.21224025,108430.0,108420.0,0.79830088]
[1752033626847,0.21224025,108430.0,108420.0,0.79822088]
[1752033629150,0.21224025,108430.0,108420.0,0.13534088]
[1752033629340,0.21224025,108430.0,108420.0,0.76638088]
[1752033629544,0.21224025,108430.0,108420.0,0.13534088]
[1752033629741,0.21224025,108430.0,108420.0,0.76622088]
[1752033631851,0.21224025,108430.0,108420.0,0.13534088]
[1752033632055,0.21224025,108430.0,108420.0,0.79822088]
[1752033632245,0.21224025,108430.0,108420.0,0.7152608]
[1752033632745,0.21224025,108430.0,108420.0,0.82594632]
[1752033634051,0.20324376,108430.0,108420.0,0.82594632]
[1752033634554,0.20324376,108430.0,108420.0,0.20968389]
[1752033634753,0.17885376,108430.0,108420.0,0.84028389]
[1752033635942,0.17885376,108430.0,108420.0,0.84028412]
[1752033636146,0.20324376,108430.0,108420.0,0.17748412]